Cogmind - Beta 13 --- EXPLORER MODE // 2024.04.20 @ 11:55:00 Player: kucifra Result: Destroyed by P-80 Master with Gamma Rifle Performance ------------- Evolutions (9) 4500 Regions Visited (20) 4000 Robots Destroyed (348) 1740 Value Destroyed (17963) 17963 Prototype IDs (16) 320 Alien Tech Used (0) 0 Bonus (4094) 4094 TOTAL SCORE: 32617 Bonus ------- High Alert Combat Kills 1100 Follower Combat Kills 694 Entered Garrisons 600 Used RIF Installer 1500 Network Hubs Disabled 200 Cogmind --------- Core Integrity 0/1600 Matter 201/300 Energy 71/100 System Corruption 23% Temperature Cool (0) Movement Core (50) Location -1/Access Parts ------- > --- POWER (2) -------- (None) > --- PROPULSION (7) --- (None) > --- UTILITY (13) ----- (None) > --- WEAPON (4) ------- (None) > --- INVENTORY (5) ---- Quantum Reactor Light Quantum Reactor Light Quantum Reactor Light Quantum Reactor Medium Treads Peak State ------------ > --- POWER ------------ Light Quantum Reactor Reinforced Quantum Reactor > --- PROPULSION ------- Medium Treads Armored Heavy Treads Armored Heavy Treads Biometal Heavy Treads > --- UTILITY ---------- Improved Cooling System Advanced Cooling System Huge Storage Unit Energy Well Machine Analyzer Enhanced Optical Array Advanced Targeting Computer Armor Integrity Analyzer Improved Core Shielding Improved Light Armor Plating Improved Heavy Armor Plating Advanced Force Field > --- WEAPON ----------- Enhanced Quantum Rifle Enhanced Nova Cannon Hypervelocity Railgun Micro-nuke Launcher > --- INVENTORY -------- Particle Reactor Light Quantum Reactor Light Quantum Reactor Light Quantum Reactor Reinforced Quantum Reactor Medium Treads Improved Medium Treads Improved Medium Treads Armored Medium Treads Armored Heavy Treads Advanced Heat Sink Advanced Heat Sink Large Matter Pod Plasma Rifle Quantum Rifle Enhanced Quantum Rifle Enhanced Quantum Rifle Coil Gun KE Penetrator Railgun Railgun Railgun Chainsword [Rating: 177] Favorites ----------- Power Improved Deuterium Engine Engine Improved Deuterium Engine Power Core Enhanced Nuclear Core Reactor Particle Reactor Propulsion Light Treads Treads Light Treads Utility Machine Analyzer Device Advanced Cooling System Storage Huge Storage Unit Processor Machine Analyzer Hackware Hacking Suite Protection Hardened Medium Armor Plating Weapon Improved Assault Rifle Energy Gun Gatling Laser Energy Cannon Enhanced Nova Cannon Ballistic Gun Improved Assault Rifle Ballistic Cannon Mass Driver Launcher Micro-nuke Launcher Special Weapon Improved Remote Datajack Slashing Weapon Chainsword Build | -11 -10 -9 -8 -8 -8 -8 -7 -7 -7 -7 -5 -4 -4 -4 -4 -4 -3 -3 -2 -1 ------- Run | Yrd Mat Mat Mat Gar Mat Gar Fac Sto Gar Rec Fac Fac Ext Cet Arc Hub Res Arm Res Acc Slots Evolved 19 | . 1 2 2 . . . 2 . . . 4 2 . . . . 2 . 2 2 Power 1 | . . . . . . . . . . . 1 . . . . . . . . . Propulsion 5 | . . 1 . . . . 1 . . . 1 1 . . . . . . 1 . Utility 11 | . 1 1 1 . . . 1 . . . 2 1 . . . . 1 . 1 2 Weapon 2 | . . . 1 . . . . . . . . . . . . . 1 . . . Parts Attached 256 | 8 7 14 6 4 7 3 22 7 15 2 33 11 18 4 4 4 5 26 24 32 Power 32 | 1 1 1 . . 1 1 . 2 . . 4 1 4 . 2 1 1 4 2 6 Engine 11 | 1 1 1 . . . 1 . 1 . . 3 1 1 . 1 . . . . . Core 4 | . . . . . 1 . . 1 . . 1 . 1 . . . . . . . Reactor 17 | . . . . . . . . . . . . . 2 . 1 1 1 4 2 6 Propulsion 61 | 2 1 4 2 . 4 . 6 3 5 . 6 4 2 . . 2 1 8 7 4 Treads 61 | 2 1 4 2 . 4 . 6 3 5 . 6 4 2 . . 2 1 8 7 4 Leg . | . . . . . . . . . . . . . . . . . . . . . Wheel . | . . . . . . . . . . . . . . . . . . . . . Hover . | . . . . . . . . . . . . . . . . . . . . . Flight . | . . . . . . . . . . . . . . . . . . . . . Utility 82 | 3 3 4 3 2 1 1 5 1 5 2 12 2 6 2 . 1 1 10 11 7 Device 25 | . 1 1 . 1 . 1 1 . 1 1 5 1 1 . . 1 . 5 4 1 Storage 7 | 1 1 1 . . . . . . . . . . . 1 . . . . 3 . Processor 9 | . 1 1 1 . . . . . . . . . . . . . . 1 2 3 Hackware 6 | . . . . . . . 3 . . . 2 . 1 . . . . . . . Protection 35 | 2 . 1 2 1 1 . 1 1 4 1 5 1 4 1 . . 1 4 2 3 Artifact . | . . . . . . . . . . . . . . . . . . . . . Weapon 81 | 2 2 5 1 2 1 1 11 1 5 . 11 4 6 2 2 . 2 4 4 15 Energy Gun 20 | 1 . . . . . . 1 . 1 . 3 2 . 1 1 . 1 1 1 7 Energy Cannon 2 | . . . . . . . . . . . . . . . . . . 1 1 . Ballistic Gun 35 | 1 2 4 . 1 1 1 6 . 4 . 2 1 2 . 1 . . 2 2 5 Ballistic Cannon 2 | . . . . . . . 1 . . . . . 1 . . . . . . . Launcher 9 | . . 1 1 . . . 2 . . . . . 3 1 . . . . . 1 Special Weapon 3 | . . . . . . . 1 . . . 2 . . . . . . . . . Impact Weapon . | . . . . . . . . . . . . . . . . . . . . . Slashing Weapon 10 | . . . . 1 . . . 1 . . 4 1 . . . . 1 . . 2 Piercing Weapon . | . . . . . . . . . . . . . . . . . . . . . Special Melee Weapon . | . . . . . . . . . . . . . . . . . . . . . Unidentified Prototypes 7 | . 1 1 . . . . 3 2 . . . . . . . . . . . . Parts Lost 80 | . 2 2 . . . . 1 3 7 1 7 2 4 1 2 1 . 10 4 33 Power 8 | . . . . . . . . . . . 1 1 1 1 1 . . 1 . 2 Propulsion 17 | . . . . . . . . 2 4 . 2 . . . . 1 . 2 . 6 Utility 35 | . 1 2 . . . . 1 1 2 1 2 . 3 . . . . 7 4 11 Weapon 20 | . 1 . . . . . . . 1 . 2 1 . . 1 . . . . 14 Highest Loss Streak 27 | . 1 1 . . . . 1 1 3 1 1 2 2 1 2 1 . 8 2 27 To Critical Strikes 2 | . . . . . . . . . . . . . . 1 . . . 1 . . Average Slot Usage (%) 93 | . 99 99 100 100 99 100 98 98 95 91 97 89 84 80 83 85 86 88 86 81 Engine 4 | . 12 10 8 8 5 6 7 3 . . 6 9 7 . 1 . . . . . Core 1 | . . . . . 2 1 . 3 7 7 3 . 2 . . . . . . . Reactor 1 | . . . . . . . . . . . . . . 5 7 10 9 9 7 6 Treads 23 | . 25 30 25 25 25 25 27 27 26 21 26 20 20 20 20 20 18 19 19 15 Device 8 | . 2 12 8 8 8 8 5 . . 1 11 19 12 10 10 10 9 12 13 11 Storage 6 | . 12 10 8 8 8 8 7 7 7 7 5 5 5 5 5 5 4 4 5 6 Processor 11 | . 12 12 16 16 16 16 14 14 12 7 5 5 5 5 5 5 4 7 12 17 Hackware 6 | . . . . . . . 7 14 14 11 9 5 5 10 10 10 9 7 3 . Protection 8 | . 8 4 8 8 7 8 7 7 7 14 10 10 12 10 10 10 13 8 6 6 Energy Gun 4 | . 10 . . . . . 3 6 . . 8 11 7 9 9 10 9 6 4 3 Ballistic Gun 11 | . 13 19 16 16 16 16 17 14 18 21 4 . 1 5 5 5 4 4 7 3 Slashing Weapon 1 | . . . . 7 8 8 . . . . 1 3 1 . . . 4 4 . . Naked Turns 19 | . . . . . . . . . . . . . . . . . . . . 19 Heaviest Build 208 | 19 55 97 102 106 105 109 111 110 104 105 130 144 167 148 158 158 169 170 177 208 Greatest Support 223 | 40 40 60 62 62 62 62 92 92 88 60 127 197 197 197 197 200 200 199 223 223 Greatest Overweight (x) 2 | 1 1 1 1 1 1 1 1 2 1 1 1 . 1 . . . . 1 . . Average Overweight (x) . | . . . 1 1 1 1 1 1 1 1 . . . . . . . . . . Largest Inventory Capacity 25 | 10 20 25 25 25 25 25 25 25 25 25 25 25 25 25 25 25 25 25 25 25 Average Capacity 24 | 8 18 21 25 25 25 25 25 25 25 25 25 25 25 25 25 25 25 25 25 24 Most Carried 25 | 4 17 22 25 25 25 25 25 25 23 25 25 25 25 25 25 25 25 25 25 25 Average Carried 22 | 2 11 18 21 24 24 25 24 22 20 24 24 24 24 24 23 24 24 23 24 22 Final Capacity 25 | 10 20 25 25 25 25 25 25 25 25 25 25 25 25 25 25 25 25 25 25 5 Final Carried 25 | 4 16 22 23 25 25 25 25 21 23 24 23 25 25 24 24 25 25 25 25 5 Class Distribution -------------------- 28% | Hacker-Mutant 24% | Hacker-Tank 13% | Scavenger-Tank 13% | Hacker-Gunner 7% | Hacker-Skirmisher 6% | Scavenger-Mutant 4% | Scavenger-Gunner Dominant Class ---------------- Hacker-Mutant | -10/Materials Hacker-Mutant | -9/Materials Hacker-Tank | -8/Materials Hacker-Mutant | -8/Garrison Hacker-Mutant | -8/Materials Scavenger-Mutant | -8/Garrison Hacker-Skirmisher | -7/Factory Hacker-Gunner | -7/Storage Hacker-Gunner | -7/Garrison Hacker-Tank | -7/Recycling Scavenger-Tank | -5/Factory Hacker-Mutant | -4/Factory Hacker-Tank | -4/Extension Hacker-Tank | -4/Cetus Hacker-Tank | -4/Archives Hacker-Tank | -4/Hub_04(d) Hacker-Tank | -3/Research Hacker-Tank | -3/Armory Scavenger-Tank | -2/Research Scavenger-Gunner | -1/Access Resources | -11 -10 -9 -8 -8 -8 -8 -7 -7 -7 -7 -5 -4 -4 -4 -4 -4 -3 -3 -2 -1 ----------- Run | Yrd Mat Mat Mat Gar Mat Gar Fac Sto Gar Rec Fac Fac Ext Cet Arc Hub Res Arm Res Acc Matter Collected 8383 | 270 145 574 78 140 451 270 872 457 729 14 656 141 746 . 368 219 55 490 870 838 Remotely . | . . . . . . . . . . . . . . . . . . . . . Salvage Created 18261 | . 436 1165 109 213 431 330 1549 959 1087 40 1862 417 1395 . 368 707 102 1511 2101 3479 Parts 733 | . 30 69 4 9 23 13 76 50 50 3 57 8 49 . 10 23 1 65 81 112 Haulers Intercepted 10 | . 2 1 . . . . 2 4 . . . . . . . . . . . 1 Recyclers Shooed 5 | . . . . . . . . . . . 2 . 1 . . . . . 1 1 Parts Field Recycled . | . . . . . . . . . . . . . . . . . . . . . Retrieved Matter . | . . . . . . . . . . . . . . . . . . . . . Parts Self-Destructed . | . . . . . . . . . . . . . . . . . . . . . Prevented . | . . . . . . . . . . . . . . . . . . . . . Kills | -11 -10 -9 -8 -8 -8 -8 -7 -7 -7 -7 -5 -4 -4 -4 -4 -4 -3 -3 -2 -1 ------- Run | Yrd Mat Mat Mat Gar Mat Gar Fac Sto Gar Rec Fac Fac Ext Cet Arc Hub Res Arm Res Acc Combat Hostiles Destroyed 278 | . 7 25 2 6 10 6 24 16 23 1 22 9 23 4 4 8 1 20 21 46 Melee 2 | . . . . 1 . . . . . . . 1 . . . . . . . . Guns 213 | . 6 25 2 5 10 6 22 16 23 1 21 5 10 1 4 8 1 14 11 22 Cannons 30 | . . . . . . . . . . . . . 4 . . . . 5 7 14 AOE 20 | . . . . . . . 2 . . . . . 6 3 . . . . . 9 Classes Destroyed 20 | . 3 5 . . . 2 5 . 1 . 1 . . . . . . 1 1 1 Worker 13 | . . 1 . . 1 . . 1 . . 2 . 6 . . 1 . . . 1 Builder 6 | . . . . . . . 1 . . . . . 4 . . . . . 1 . Tunneler 2 | . . . . . . . 1 . . . . . 1 . . . . . . . Hauler 10 | . 2 1 . . . . 2 4 . . . . . . . . . . . 1 Recycler 14 | . . . . . . . 3 1 . . 5 . 3 . . . . . 1 1 Mechanic 3 | . . . . . . . 1 . . . 1 . . . . . . . . 1 Operator 8 | . . 1 . . 1 . 2 . . . 1 . . . . 1 . 2 . . Watcher 14 | . 2 3 . . . . 1 1 . . . . 1 1 . 1 . 1 1 2 Swarmer 41 | . . 6 . 3 2 . 4 6 5 . 3 4 . . . . . 4 . 4 Saboteur 1 | . . . . . . . . . . . . . . . . . . . . 1 Grunt 113 | . 7 12 1 3 8 4 8 3 13 . 9 4 8 . . 6 . 2 9 16 Brawler 4 | . . . . . . . . . 1 . 1 . . . . . . . . 2 Duelist 5 | . . 1 1 . . . 1 . . . 1 . . . . . . . . 1 Sentry 39 | . . 6 . . . . 3 4 3 . 3 1 3 . 4 2 1 6 2 1 Demolisher 1 | . . . . . . . . . . . . . . . . . . 1 . . Specialist 5 | . . . . . . 1 . . . . . . . . . . . . 2 2 Hunter 32 | . . . . . . 1 3 1 1 . . . 10 . . . . 4 4 8 Programmer 26 | . . . . . . . 5 2 . 1 4 . . . . . . 3 2 9 Heavy 3 | . . . . . . . . . . . . . . . . . . . 1 2 Behemoth 4 | . . . . . . . . . . . 1 . 2 . . . . . 1 . Cetus Guard 4 | . . . . . . . . . . . . . . 4 . . . . . . Best Kill Streak 12 | . 4 9 2 5 4 2 6 3 8 1 12 4 10 5 2 6 1 10 7 10 Combat Bots Only 10 | . 2 7 2 5 3 2 5 3 8 1 4 4 5 4 2 6 1 10 6 9 Max Kills in Single Turn 4 | . 1 2 1 1 1 1 2 2 1 1 4 1 4 1 1 2 1 1 1 3 Gunslinging 1 | . . 1 . . . . 1 1 . . . . . . . 1 . . . . Exploded 3 | . . . . . . . 1 . . . . . 3 1 . . . . . 3 Melee 1 | . . . . 1 . . . . . . . 1 . . . . . . . . Uniques/NPCs Destroyed . | . . . . . . . . . . . . . . . . . . . . . Combat | -11 -10 -9 -8 -8 -8 -8 -7 -7 -7 -7 -5 -4 -4 -4 -4 -4 -3 -3 -2 -1 -------- Run | Yrd Mat Mat Mat Gar Mat Gar Fac Sto Gar Rec Fac Fac Ext Cet Arc Hub Res Arm Res Acc Hostile Shots Fired 2756 | . 25 111 11 41 56 61 163 205 216 2 150 48 256 33 40 85 6 230 179 838 Missed 771 | . 5 32 4 11 16 15 55 61 69 . 43 10 72 10 15 15 4 42 40 252 Damage Taken 23699 | . 364 513 46 226 364 374 912 1019 1200 20 1856 454 2922 371 412 959 33 2321 2004 7329 Core 2875 | . 42 75 6 49 15 64 108 46 144 10 127 28 347 16 . 40 . 38 108 1612 Absorbed by Shields 2909 | . . 132 18 64 . 61 34 . 12 . . . 112 . . . . 231 728 1517 Reduced by Siege Mode 364 | . . . . . . . . . . . . . . . . . . 116 78 170 Redirected to Shielding 124 | . 51 5 . . . . . . . . . . . . . . . . . 68 Ignored by Resistances 15712 | . 215 411 39 182 224 266 584 668 755 12 1078 275 1669 226 245 573 20 1518 1557 5195 Regen/Repaired (Parts) 786 | . . . . . 61 . . . . . . . 725 . . . . . . . Core Remaining (%) 81 | 100 83 81 . . . 75 . . . 56 87 . . . . 62 . 97 92 . Volleys Fired 861 | . 25 74 8 10 38 33 76 48 59 1 78 23 83 8 32 29 3 58 56 119 Largest 4 | . 2 2 2 2 2 2 3 3 3 3 3 3 3 2 3 3 3 3 4 4 Hottest 260 | . 63 46 46 46 46 51 131 131 74 74 174 216 212 105 212 217 217 220 260 260 Shots Fired 2144 | . 41 148 16 21 77 66 218 117 154 4 195 54 158 9 70 80 9 169 218 320 Gun 1872 | . 41 148 16 20 77 66 213 117 154 4 191 54 98 2 70 80 9 138 162 212 Cannon 227 | . . . . . . . . . . . . . 42 . . . . 31 56 98 Launcher 39 | . . . . 1 . . 3 . . . . . 18 7 . . . . . 10 Special 6 | . . . . . . . 2 . . . 4 . . . . . . . . . Kinetic 1244 | . 25 148 16 20 77 66 179 93 154 4 72 7 52 1 32 29 3 58 111 97 Thermal 821 | . . . . . . . 34 24 . . 101 47 88 1 38 51 6 111 107 213 Explosive 39 | . . . . 1 . . 3 . . . . . 18 7 . . . . . 10 Electromagnetic 34 | . 16 . . . . . . . . . 18 . . . . . . . . . Robot Hit Streak 71 | . 19 38 10 19 61 71 45 48 38 3 70 24 35 16 36 64 8 47 37 42 Robot Miss Streak 3 | . 1 1 1 1 1 1 3 2 2 . 2 1 3 . 1 1 1 2 1 2 Penetration Max 1 | . . . . . . . 1 . . . 1 . 1 . . 1 . 1 1 1 Secondary Targets 25 | . 1 2 . . 1 1 3 3 4 . 4 . . . . 3 . 2 . 1 Max Gunslinging Chain 1 | . 1 1 . . 1 1 1 1 1 . 1 . . . . 1 . 1 . 1 Shots Hit Robots 1767 | . 32 120 14 21 68 56 177 96 137 1 178 48 119 2 63 71 8 137 167 252 Core Hits 844 | . 16 45 4 9 25 15 85 53 55 1 122 27 82 25 19 26 4 55 56 120 Critical Kills 29 | . . 2 . 2 . 1 1 . 1 . . . 1 . . 2 . 1 8 10 Critical Parts Destroyed 26 | . . . . . . . . 2 1 . . . . . 1 . . 2 8 12 Critical Strikes 77 | . . 2 . 3 . 1 1 2 2 . 8 2 10 . 2 2 . 4 16 22 Burn 16 | . . . . . . . . . . . 8 2 6 . . . . . . . Meltdown 5 | . . . . . . . . . . . . . . . . . . 1 3 1 Destroy 52 | . . 2 . 2 . 1 1 2 2 . . . 1 . 2 2 . 3 13 21 Blast 3 | . . . . . . . . . . . . . 3 . . . . . . . Sever 1 | . . . . 1 . . . . . . . . . . . . . . . . Melee Attacks 42 | . . . . 19 . 2 . 1 . . 8 4 . . . . . 3 . 5 Impact . | . . . . . . . . . . . . . . . . . . . . . Slashing 42 | . . . . 19 . 2 . 1 . . 8 4 . . . . . 3 . 5 Piercing . | . . . . . . . . . . . . . . . . . . . . . Sneak Attacks . | . . . . . . . . . . . . . . . . . . . . . Combat Hostiles . | . . . . . . . . . . . . . . . . . . . . . Follow-up Attacks . | . . . . . . . . . . . . . . . . . . . . . Damage Inflicted 50424 | . 514 1913 219 376 1033 827 3763 2137 2181 20 4767 1119 6696 1159 1488 2078 217 4221 4867 10829 Guns 33244 | . 481 1863 219 255 1022 827 3467 1918 2181 20 3999 1086 2219 44 1488 1854 217 3034 2670 4380 Cannons 7903 | . . . . . . . . . . . . . 1082 . . . . 1187 2142 3492 Explosions 8802 | . 33 . . . . . 284 215 . . 768 . 3322 1115 . 220 . . . 2845 Melee 266 | . . . . 121 . . . . . . . 33 . . . . . . . 112 Ramming 209 | . . 50 . . 11 . 12 4 . . . . 73 . . 4 . . 55 . Kinetic 18086 | . 244 1863 219 255 1022 827 2502 1276 2181 20 1384 168 1328 23 625 673 81 1063 1260 1072 Thermal 23342 | . 33 . . . . . 965 642 . . 3100 918 1973 21 863 1181 136 3158 3552 6800 Explosive 7781 | . . . . . . . 284 215 . . . . 3322 1115 . . . . . 2845 Electromagnetic 740 | . 237 . . . . . . . . . 283 . . . . 220 . . . . Impact . | . . . . . . . . . . . . . . . . . . . . . Slashing 266 | . . . . 121 . . . . . . . 33 . . . . . . . 112 Piercing . | . . . . . . . . . . . . . . . . . . . . . Highest Corruption 23 | . . . 1 1 1 1 3 5 8 8 2 1 . . . 1 . 1 3 23 Average Corruption 3 | . . . 1 1 1 1 1 3 5 8 1 1 . . . 1 . 1 2 12 Corruption Purged 3 | . . . . . . . . . . . 2 1 . . . . . . . . Corruption Blocked . | . . . . . . . . . . . . . . . . . . . . . Effects 150 | . . . . 2 3 2 22 19 43 13 4 . . . . . . 2 7 33 Message Errors 40 | . . . . . . . 8 7 9 4 1 . . . . . . 1 1 9 Matter Fused 36 | . . . . . . 1 5 4 13 2 1 . . . . . . . 3 7 Heat Flow Errors 14 | . . . . . . . 1 3 3 2 . . . . . . . . 1 4 Energy Discharges 20 | . . . . . . 1 3 1 6 3 1 . . . . . . . . 5 Parts Rejected 2 | . . . . . . . 1 . 1 . . . . . . . . . . . Parts Fused 2 | . . . . . . . . 1 1 . . . . . . . . . . . Data Loss (minor) 12 | . . . . . . . 1 2 5 1 . . . . . . . . 1 2 Data Loss (major) 3 | . . . . . . . 1 . 1 . . . . . . . . . . 1 Misfires 11 | . . . . 1 2 . 2 1 3 1 . . . . . . . 1 . . Alerts 2 | . . . . 1 . . . . 1 . . . . . . . . . . . Misdirections 2 | . . . . . . . . . . . . . . . . . . . . 2 Weapon Failures 6 | . . . . . 1 . . . . . 1 . . . . . . . 1 3 Overload Shots . | . . . . . . . . . . . . . . . . . . . . . Overflow Damage 865 | . . 6 . . . . . 9 . . 204 . 129 18 . 26 . 39 74 360 Projectiles 304 | . . . . . . . . . . . . . 8 . . . . 39 48 209 Explosions 492 | . . . . . . . . 9 . . 204 . 121 18 . 26 . . . 114 Melee 69 | . . 6 . . . . . . . . . . . . . . . . 26 37 Knockbacks 10 | . . . . . . . 1 . . . . . 8 . . . . . 1 . Impact 3 | . . . . . . . 1 . . . . . 1 . . . . . 1 . Kinetic 5 | . . . . . . . . . . . . . 5 . . . . . . . Secondary 2 | . . . . . . . . . . . . . 2 . . . . . . . Self-Inflicted Damage 412 | . 205 . . 1 . . . 42 . . 98 . . . . 66 . . . . Shots 10 | . 4 . . 1 . . . 2 . . 2 . . . . 1 . . . . Rammed 13 | . . 2 1 . 1 . 2 1 . . . . 4 . . 1 . . 1 . Targets Rammed 14 | . . 2 1 . 1 . 2 1 . . . . 4 . . 1 . . 2 . Kicked . | . . . . . . . . . . . . . . . . . . . . . Crushed 1 | . . . . . . . . . . . . . . . . . . . 1 . Highest Temperature 521 | . 22 . . 1 34 59 376 342 216 123 195 115 521 . 272 436 108 212 126 280 Average Temperature 79 | . 14 . . 1 8 25 86 121 42 50 57 47 104 . 96 169 57 61 33 52 Received Heat Transfer 6197 | . 144 282 42 123 297 216 324 396 834 . 492 171 351 . 63 369 9 510 213 1361 Effects 28 | . . . . . . . 3 5 . . . . 9 . . 3 . . . 8 Shutdowns 5 | . . . . . . . . . . . . . 3 . . 2 . . . . Energy Bleed 5 | . . . . . . . 1 2 . . . . 1 . . 1 . . . . Interference 14 | . . . . . . . 2 2 . . . . 2 . . . . . . 8 Matter Decay 2 | . . . . . . . . 1 . . . . 1 . . . . . . . Short Circuit 1 | . . . . . . . . . . . . . 1 . . . . . . . Damage (core) 1 | . . . . . . . . . . . . . 1 . . . . . . . Siege Activations 9 | . . . . . . . . . . . . . . . . . . 1 3 5 Total Turns 216 | . . . . . . . . . . . . . . . . . . 78 53 85 Longest Duration 78 | . . . . . . . . . . . . . . . . . . 78 31 31 Robots Corrupted 2 | . 1 . . . . . . . . . 1 . . . . . . . . . Combat Hostiles 2 | . 1 . . . . . . . . . 1 . . . . . . . . . Parts Fried 10 | . 3 . . . . . . . . . 3 . . . . 2 . . 2 . Impact Corruptions 3 | . . 1 . . . . . . . . . . . . . . . . 2 . Robots Melted 11 | . . . . . . . . . . . . 3 3 . . . . 1 3 1 Combat Hostiles 11 | . . . . . . . . . . . . 3 3 . . . . 1 3 1 Parts Melted 98 | . . . . . . . 5 5 2 . 14 10 8 . 3 5 . 14 14 18 Heat Transferred 33431 | . 100 . . . . . 2075 1450 . . 5699 2102 5075 50 1388 1628 185 3441 3478 6760 Parts Sabotaged 2 | . . . . . . . . . . . . . . . . . . . . 2 Parts Stolen . | . . . . . . . . . . . . . . . . . . . . . Parts Stripped . | . . . . . . . . . . . . . . . . . . . . . Power Chain Reactions 1 | . 1 . . . . . . . . . . . . . . . . . . . Alert | -11 -10 -9 -8 -8 -8 -8 -7 -7 -7 -7 -5 -4 -4 -4 -4 -4 -3 -3 -2 -1 ------- Run | Yrd Mat Mat Mat Gar Mat Gar Fac Sto Gar Rec Fac Fac Ext Cet Arc Hub Res Arm Res Acc Peak Influence 918 | . 274 411 111 522 305 404 283 266 695 247 281 204 436 203 117 480 232 407 222 918 Initial 225 | . . . 59 54 186 124 157 9 22 225 120 27 18 63 . 27 187 90 31 100 Average 192 | . 115 151 93 315 182 289 95 105 418 234 86 84 176 148 88 191 194 199 90 488 Maximum Alert Level 3 | . 1 2 . 2 1 2 1 1 2 1 1 1 2 1 . 2 1 2 1 3 Low Security (%) 60 | 100 72 73 100 16 48 26 82 78 17 . 84 98 75 45 100 52 79 57 78 19 Level 1 25 | . 27 26 . 48 51 47 17 21 24 100 15 1 17 54 . 35 20 35 21 7 Level 2 12 | . . . . 34 . 25 . . 58 . . . 6 . . 11 . 6 . 55 Level 3 1 | . . . . . . . . . . . . . . . . . . . . 17 Level 4 . | . . . . . . . . . . . . . . . . . . . . . Level 5 . | . . . . . . . . . . . . . . . . . . . . . High Security . | . . . . . . . . . . . . . . . . . . . . . Max Security . | . . . . . . . . . . . . . . . . . . . . . Squads Dispatched 47 | . 1 1 . . 3 . 8 4 . . 4 3 3 . . 2 . 3 5 10 Investigation 8 | . 1 . . . . . 1 . . . . 2 1 . . 1 . 1 1 . Extermination 11 | . . . . . . . 3 1 . . 2 . . . . . . 1 2 2 Reinforcement 24 | . . 1 . . 2 . 4 3 . . 2 1 2 . . 1 . 1 2 5 Assault 3 | . . . . . . . . . . . . . . . . . . . . 3 Garrison 1 | . . . . . 1 . . . . . . . . . . . . . . . Intercept . | . . . . . . . . . . . . . . . . . . . . . Searches Triggered . | . . . . . . . . . . . . . . . . . . . . . Construction Impeded 3 | . . . . . . . 1 . . . . . 2 . . . . . . . Haulers Reinforced 3 | . . . . . . . . 2 . . . . . . . . . . . 1 Active Scanning Responses . | . . . . . . . . . . . . . . . . . . . . . Cargo Convoy Interrupts . | . . . . . . . . . . . . . . . . . . . . . Stealth | -11 -10 -9 -8 -8 -8 -8 -7 -7 -7 -7 -5 -4 -4 -4 -4 -4 -3 -3 -2 -1 --------- Run | Yrd Mat Mat Mat Gar Mat Gar Fac Sto Gar Rec Fac Fac Ext Cet Arc Hub Res Arm Res Acc Distress Signals 23 | . 1 2 . . . . 3 2 . . 3 . 2 2 . 3 . 2 . 3 Communications Jammed . | . . . . . . . . . . . . . . . . . . . . . Distress Signals . | . . . . . . . . . . . . . . . . . . . . . Times Spotted 404 | . 11 37 4 16 15 7 38 21 32 1 34 11 35 3 6 13 1 26 22 71 Peak Tracking Total 12 | . 3 5 2 8 3 2 5 3 10 . 4 5 6 5 1 7 1 9 6 12 Tactical Retreats 11 | . 1 . . 3 . 1 1 . 3 . 1 . . . . . . . . 1 Traps | -11 -10 -9 -8 -8 -8 -8 -7 -7 -7 -7 -5 -4 -4 -4 -4 -4 -3 -3 -2 -1 ------- Run | Yrd Mat Mat Mat Gar Mat Gar Fac Sto Gar Rec Fac Fac Ext Cet Arc Hub Res Arm Res Acc Traps Triggered 31 | . . 1 1 5 . 5 1 2 9 . 1 . 3 . . . . 1 2 . Indirectly . | . . . . . . . . . . . . . . . . . . . . . Trap Hack Attempts . | . . . . . . . . . . . . . . . . . . . . . Triggered . | . . . . . . . . . . . . . . . . . . . . . Disarmed 5 | . . . 5 . . . . . . . . . . . . . . . . . Reprogrammed . | . . . . . . . . . . . . . . . . . . . . . Reused . | . . . . . . . . . . . . . . . . . . . . . Traps Extracted . | . . . . . . . . . . . . . . . . . . . . . Installed . | . . . . . . . . . . . . . . . . . . . . . Triggered 1 | . 1 . . . . . . . . . . . . . . . . . . . Machines | -11 -10 -9 -8 -8 -8 -8 -7 -7 -7 -7 -5 -4 -4 -4 -4 -4 -3 -3 -2 -1 ---------- Run | Yrd Mat Mat Mat Gar Mat Gar Fac Sto Gar Rec Fac Fac Ext Cet Arc Hub Res Arm Res Acc Machines Disabled 37 | . 3 . . 2 . 1 1 3 . . 4 . 6 . 3 7 . 4 2 1 Max in Single Turn 4 | . 3 . . 1 . 1 1 3 . . 4 . 1 . 1 4 . 1 1 1 Garrison Relay 3 | . . . . 2 . 1 . . . . . . . . . . . . . . Network Hub 1 | . . . . . . . . . . . . . . . . 1 . . . . Energy Cycler 2 | . . . . . . . . . . . . . 1 . . . . 1 . . Machines Repaired . | . . . . . . . . . . . . . . . . . . . . . Machines Dismantled . | . . . . . . . . . . . . . . . . . . . . . Machines Sabotaged . | . . . . . . . . . . . . . . . . . . . . . Overloaded Fab Kills . | . . . . . . . . . . . . . . . . . . . . . Hacking | -11 -10 -9 -8 -8 -8 -8 -7 -7 -7 -7 -5 -4 -4 -4 -4 -4 -3 -3 -2 -1 --------- Run | Yrd Mat Mat Mat Gar Mat Gar Fac Sto Gar Rec Fac Fac Ext Cet Arc Hub Res Arm Res Acc Machines Accessed 63 | . 3 4 2 1 3 1 4 6 2 4 4 4 8 3 1 3 . 6 4 . Terminals 50 | . 3 4 1 1 1 1 2 5 2 4 3 3 7 3 . 3 . 5 2 . Fabricators 3 | . . . . . . . 1 . . . 1 . . . . . . . 1 . Repair Stations 6 | . . . . . 1 . 1 . . . . 1 1 . . . . 1 1 . Recycling Units . | . . . . . . . . . . . . . . . . . . . . . Scanalyzers . | . . . . . . . . . . . . . . . . . . . . . Garrison Access 3 | . . . 1 . 1 . . 1 . . . . . . . . . . . . Total Hacks 159 | . 10 8 4 2 6 3 7 16 4 8 8 7 13 7 25 6 . 16 9 . Successful 103 | . 8 6 3 1 5 1 5 9 1 4 5 1 11 6 25 2 . 8 2 . Failed 56 | . 2 2 1 1 1 2 2 7 3 4 3 6 2 1 . 4 . 8 7 . Catastrophic 11 | . . . . . . 2 . 1 . 2 1 1 . . . 1 . 2 1 . Database Lockouts . | . . . . . . . . . . . . . . . . . . . . . Manual 41 | . 6 6 . . 3 2 2 . 1 . 4 4 . . . 3 . 6 4 . Terminals 114 | . 10 8 3 2 3 3 2 15 4 8 6 6 11 7 . 6 . 15 5 . Fabricators 5 | . . . . . . . 2 . . . 2 . . . . . . . 1 . Repair Stations 12 | . . . . . 2 . 3 . . . . 1 2 . . . . 1 3 . Recycling Units . | . . . . . . . . . . . . . . . . . . . . . Scanalyzers . | . . . . . . . . . . . . . . . . . . . . . Garrison Access 3 | . . . 1 . 1 . . 1 . . . . . . . . . . . . Terminal Hacks 85 | . 7 4 2 1 1 1 2 8 1 4 3 1 9 6 25 2 . 8 . . Record 50 | . 5 . . . . . . 5 . 2 1 . 5 5 25 . . 2 . . Part Schematic 3 | . . . . . 1 . 1 1 . . . . . . . . . . . . Robot Schematic 1 | . . . . . . . . . . . . . . . . . . 1 . . Robot Analysis 5 | . 2 1 . . . . . 1 . . . . . . . . . 1 . . Prototype ID Bank 5 | . . 1 . . . . . 1 . 2 1 . . . . . . . . . Open Door 5 | . . . . . . . . . . . . . 4 1 . . . . . . Level Access Points 1 | . . . . . . . . . . . . . . . . . . 1 . . Branch Access Points 7 | . . 1 1 . . . 1 . . . 1 1 . . . . . 2 . . Emergency Access Points 2 | . . . . 1 . . . . . . . . . . . 1 . . . . Machine Index 1 | . . . . . . . . . . . . . . . . . . 1 . . Disarm Traps 1 | . . . 1 . . . . . . . . . . . . . . . . . Hauler Manifests 1 | . . 1 . . . . . . . . . . . . . . . . . . Zone Layout 2 | . . . . . . . . . 1 . . . . . . 1 . . . . Security Stations 1 | . . . . . . 1 . . . . . . . . . . . . . . Fabricator Hacks 5 | . . . . . . . 2 . . . 2 . . . . . . . 1 . Load Schematic 3 | . . . . . . . 1 . . . 1 . . . . . . . 1 . Build 2 | . . . . . . . 1 . . . 1 . . . . . . . . . Repair Station Hacks 6 | . . . . . 2 . 1 . . . . . 2 . . . . . 1 . Scan Component 4 | . . . . . 1 . 1 . . . . . 1 . . . . . 1 . Repair 2 | . . . . . 1 . . . . . . . 1 . . . . . . . Recycling Unit Hacks . | . . . . . . . . . . . . . . . . . . . . . Scanalyzer . | . . . . . . . . . . . . . . . . . . . . . Garrison Access Hacks 3 | . . . 1 . 1 . . 1 . . . . . . . . . . . . Unlock Access 3 | . . . 1 . 1 . . 1 . . . . . . . . . . . . Unauthorized Hacks 4 | . 1 2 . . 1 . . . . . . . . . . . . . . . Terminals 4 | . 1 2 . . 1 . . . . . . . . . . . . . . . Botnet 1 | . . 1 . . . . . . . . . . . . . . . . . . Operators 3 | . 1 1 . . 1 . . . . . . . . . . . . . . . Fabricators . | . . . . . . . . . . . . . . . . . . . . . Repair Stations . | . . . . . . . . . . . . . . . . . . . . . Recycling Units . | . . . . . . . . . . . . . . . . . . . . . Scanalyzers . | . . . . . . . . . . . . . . . . . . . . . Garrison Access . | . . . . . . . . . . . . . . . . . . . . . Data Cores Recovered 3 | . . . . . . . 1 . . . 1 . . . . . . 1 . . Used . | . . . . . . . . . . . . . . . . . . . . . Hacking Detections 46 | . 3 3 . 1 1 1 2 6 1 3 4 4 4 1 . 3 . 5 4 . Full Trace Events 10 | . 2 . . . . 1 1 . 1 1 . 2 1 . . 1 . . . . Feedback Events 2 | . . . . . . . . . . 1 . 1 . . . . . . . . Corruption 1 | . . . . . . . . . . . . 1 . . . . . . . . Hackware Fried 1 | . . . . . . . . . . 1 . . . . . . . . . . Feedback Blocked . | . . . . . . . . . . . . . . . . . . . . . Robot Schematics Acquired 1 | . . . . . . . . . . . . . . . . . . 1 . . Robots Built . | . . . . . . . . . . . . . . . . . . . . . Authchips . | . . . . . . . . . . . . . . . . . . . . . Time . | . . . . . . . . . . . . . . . . . . . . . Total Robot Build Rating . | . . . . . . . . . . . . . . . . . . . . . Part Schematics Acquired 3 | . . . . . 1 . 1 1 . . . . . . . . . . . . Parts Built 3 | . . . . . . . 1 . . . 2 . . . . . . . . . Authchips . | . . . . . . . . . . . . . . . . . . . . . Time 84 | . . . . . . . 42 . . . 42 . . . . . . . . . Total Part Build Rating 12 | . . . . . . . 4 . . . 8 . . . . . . . . . Parts Repaired 2 | . . . . . 1 . . . . . . . 1 . . . . . . . Time 94 | . . . . . 38 . . . . . . . 56 . . . . . . . Parts Recycled . | . . . . . . . . . . . . . . . . . . . . . Recycled Matter . | . . . . . . . . . . . . . . . . . . . . . Retrieved Matter . | . . . . . . . . . . . . . . . . . . . . . Retrieved Components . | . . . . . . . . . . . . . . . . . . . . . Parts Scanalyzed . | . . . . . . . . . . . . . . . . . . . . . Part Schematics Acquired . | . . . . . . . . . . . . . . . . . . . . . Parts Damaged . | . . . . . . . . . . . . . . . . . . . . . Bothacking | -11 -10 -9 -8 -8 -8 -8 -7 -7 -7 -7 -5 -4 -4 -4 -4 -4 -3 -3 -2 -1 ------------ Run | Yrd Mat Mat Mat Gar Mat Gar Fac Sto Gar Rec Fac Fac Ext Cet Arc Hub Res Arm Res Acc Used RIF Installer 3 | . . . . 1 . 1 . . 1 . . . . . . . . . . . Zone Cloak 1 | . . . . . . 1 . . . . . . . . . . . . . . Program Shield 1 | . . . . . . . . . 1 . . . . . . . . . . . Robots Hacked 2 | . . . . . . . 1 . . . 1 . . . . . . . . . Non-combat 1 | . . . . . . . 1 . . . . . . . . . . . . . Combat 1 | . . . . . . . . . . . 1 . . . . . . . . . Robot Hacks Applied 3 | . . . . . . . 1 . . . 2 . . . . . . . . . spike_heat 1 | . . . . . . . . . . . 1 . . . . . . . . . streamctrl_high 1 | . . . . . . . . . . . 1 . . . . . . . . . formatsys_low 1 | . . . . . . . 1 . . . . . . . . . . . . . Relay Couplers Released 17 | . . . . 8 . 4 4 1 . . . . . . . . . . . . Machine Destruction 12 | . . . . 8 . 4 . . . . . . . . . . . . . . Programmers 5 | . . . . . . . 4 1 . . . . . . . . . . . . Attached 2 | . . . . . . . 1 . . . 1 . . . . . . . . . Fabnet Peak Effective % . | . . . . . . . . . . . . . . . . . . . . . Robots Rewired 7 | . . . . 4 . . . . . 3 . . . . . . . . . . Allies Hacked . | . . . . . . . . . . . . . . . . . . . . . Hacks Repelled . | . . . . . . . . . . . . . . . . . . . . . Allies | -11 -10 -9 -8 -8 -8 -8 -7 -7 -7 -7 -5 -4 -4 -4 -4 -4 -3 -3 -2 -1 -------- Run | Yrd Mat Mat Mat Gar Mat Gar Fac Sto Gar Rec Fac Fac Ext Cet Arc Hub Res Arm Res Acc Total Allies 26 | . . . . 4 . . 1 10 2 3 1 . 5 . . . . . . . Largest Group 10 | . . . . 3 1 . 1 10 4 3 3 . 3 . . . . . . . Highest-Rated Group 217 | . . . . 72 24 . 26 173 64 50 85 . 217 . . . . . . . Highest-Rated Ally 159 | . . . . 24 24 . 26 29 31 30 85 . 159 . . . . . . . Total Orders . | . . . . . . . . . . . . . . . . . . . . . Ally Attacks 135 | . . . . 29 9 . . 20 39 . 6 . 32 . . . . . . . Total Damage 2686 | . . . . 519 185 . . 282 539 . 185 . 976 . . . . . . . Kills 24 | . . . . 9 3 . . 3 3 . 2 . 4 . . . . . . . Allies Corrupted . | . . . . . . . . . . . . . . . . . . . . . Allies Melted 1 | . . . . . . . . . 1 . . . . . . . . . . . Intel | -11 -10 -9 -8 -8 -8 -8 -7 -7 -7 -7 -5 -4 -4 -4 -4 -4 -3 -3 -2 -1 ------- Run | Yrd Mat Mat Mat Gar Mat Gar Fac Sto Gar Rec Fac Fac Ext Cet Arc Hub Res Arm Res Acc Robot Analysis Total 5 | . 2 1 . . . . . 1 . . . . . . . . . 1 . . Derelict Logs Recovered . | . . . . . . . . . . . . . . . . . . . . . Drone Launches . | . . . . . . . . . . . . . . . . . . . . . Drone Recoveries . | . . . . . . . . . . . . . . . . . . . . . Exploration | -11 -10 -9 -8 -8 -8 -8 -7 -7 -7 -7 -5 -4 -4 -4 -4 -4 -3 -3 -2 -1 ------------- Run | Yrd Mat Mat Mat Gar Mat Gar Fac Sto Gar Rec Fac Fac Ext Cet Arc Hub Res Arm Res Acc Turns Passed 17832 | 92 801 1098 267 754 738 667 2214 975 1725 395 1904 535 1243 513 344 362 152 886 1041 1126 Spaces Moved 7006 | 55 309 454 93 270 239 231 778 320 619 157 712 266 525 301 150 161 83 386 461 436 Core 49 | 13 . . . . . . . . . . . . . . . . . . . 36 Treads 6957 | 42 309 454 93 270 239 231 778 320 619 157 712 266 525 301 150 161 83 386 461 400 Legs . | . . . . . . . . . . . . . . . . . . . . . Wheels . | . . . . . . . . . . . . . . . . . . . . . Hover . | . . . . . . . . . . . . . . . . . . . . . Flight . | . . . . . . . . . . . . . . . . . . . . . Fastest Speed 50 | 50 160 160 235 238 238 238 230 235 240 240 160 158 158 163 163 161 161 161 155 50 Average Speed 201 | 140 226 177 238 238 238 238 236 238 241 240 219 158 171 163 163 162 162 163 157 153 Slowest Speed 325 | 160 240 240 240 238 238 238 241 325 245 240 242 161 238 163 163 163 163 248 161 164 Overloaded Moves . | . . . . . . . . . . . . . . . . . . . . . Propulsion Burnouts . | . . . . . . . . . . . . . . . . . . . . . Robots Hopped . | . . . . . . . . . . . . . . . . . . . . . Cave-ins Triggered . | . . . . . . . . . . . . . . . . . . . . . Exploration Rate (%) 37 | 4 59 50 12 34 18 38 27 56 65 45 33 9 74 89 91 26 3 27 11 12 Regions Visited 20 Branch Regions 7 Pre-discovered Areas . | . . . . . . . . . . . . . . . . . . . . . Known Exits Taken 17 | 1 1 1 1 . 1 . 1 1 . 1 1 1 1 1 1 1 1 1 1 . Unknown Exits Taken . | . . . . . . . . . . . . . . . . . . . . . Scrap Searched . | . . . . . . . . . . . . . . . . . . . . . Spaces Dug 16 | . . . . . . . . 1 . . 7 3 . . . . . 3 . 2 Terrain Destroyed 701 | . 50 . . 6 . . 10 20 . . 38 3 130 95 . 161 . 34 10 144 Melee 16 | . . . . . . . . 1 . . 7 3 . . . . . 3 . 2 Projectile 59 | . . . . . . . . . . . 1 . 5 . . 9 . 15 6 23 AOE 618 | . 50 . . 6 . . 10 19 . . 30 . 125 95 . 152 . 14 . 117 Terrain Rammed . | . . . . . . . . . . . . . . . . . . . . . Walls Destroyed . | . . . . . . . . . . . . . . . . . . . . . Machines Disabled . | . . . . . . . . . . . . . . . . . . . . . Actions | -11 -10 -9 -8 -8 -8 -8 -7 -7 -7 -7 -5 -4 -4 -4 -4 -4 -3 -3 -2 -1 --------- Run | Yrd Mat Mat Mat Gar Mat Gar Fac Sto Gar Rec Fac Fac Ext Cet Arc Hub Res Arm Res Acc Total 8907 | 67 369 597 120 337 336 282 978 428 717 175 871 325 714 313 194 198 95 517 635 639 Wait 420 | . 13 31 9 4 38 3 77 28 5 . 18 3 69 . . . . 10 76 36 Move 6983 | 54 308 453 92 268 238 229 777 319 617 156 711 265 524 300 149 160 82 385 460 436 Hop . | . . . . . . . . . . . . . . . . . . . . . Pick Up 140 | 4 14 14 2 7 5 1 13 11 2 2 10 9 9 . 5 2 2 16 6 6 Fast Attach 38 | 7 1 2 . . 1 . 2 . 4 . 4 1 2 . 1 . . 3 7 3 Attach 83 | 1 2 4 2 . . . 5 3 3 1 9 6 7 . 2 1 2 10 5 20 Detach 7 | 1 . . . . . . . . . . . 2 . . . . . 2 1 1 Swap 135 | . 4 8 4 4 6 3 15 4 8 1 20 4 9 4 1 3 3 13 12 9 Drop 124 | . 2 9 2 6 9 3 11 13 1 1 11 8 7 1 4 2 3 17 10 4 Fire 861 | . 25 74 8 10 38 33 76 48 59 1 78 23 83 8 32 29 3 58 56 119 Melee 42 | . . . . 19 . 2 . 1 . . 8 4 . . . . . 3 . 5 Ram . | . . . . . . . . . . . . . . . . . . . . . Kick . | . . . . . . . . . . . . . . . . . . . . . Crush 14 | . . 2 1 . 1 . 2 1 . . . . 4 . . 1 . . 2 . Escape Stasis 32 | . . . . 6 . 8 . . 16 . 2 . . . . . . . . . Rewire 28 | . . . . 13 . . . . 2 13 . . . . . . . . . . Trap . | . . . . . . . . . . . . . . . . . . . . . Miscellaneous . | . . . . . . . . . . . . . . . . . . . . . Route ------- -11/Scrapyard -10/Materials -9/Materials (discovered 2 exits: *Mat / *Min) -8/Materials -8/Garrison -8/Materials -8/Garrison -7/Factory (discovered 4 exits: *Fac / *Sto / *Low x2) -7/Storage -7/Garrison (discovered 2 exits: *Rec x2) -7/Recycling -5/Factory (discovered 3 exits: *Fac / Upp x2) -4/Factory (discovered 4 exits: Upp x2 / *Ext x2) -4/Extension (discovered 2 exits: *Res / *Cet) -4/Cetus (discovered 2 exits: *Res / *Arc) -4/Archives (discovered 3 exits: *Res / *Hub x2) -4/Hub_04(d) -3/Research (discovered 2 exits: *Res / *Arm) -3/Armory (discovered 2 exits: *Res x2) -2/Research -1/Access History --------- Turn | Location | Event 13 | -11/Scrapyard | Identified exit to Materials 13 | -11/Scrapyard | Discovered exit to Materials (range 16) 93 | -11/Scrapyard | Entered Materials 93 | -10/Materials | Evolved 1 slot: Utility x1 317 | -10/Materials | Build established: Hacker-Mutant 761 | -10/Materials | Identified exit to Materials 761 | -10/Materials | Discovered exit to Materials (range 10) 894 | -10/Materials | Entered another Materials area 894 | -9/Materials | Evolved 2 slots: Propulsion x1, Utility x1 1218 | -9/Materials | Destroyed 7 combat bots 1476 | -9/Materials | Identified exit to Mines 1843 | -9/Materials | Identified exit to Materials 1843 | -9/Materials | Discovered exit to Materials (range 8) 1992 | -9/Materials | Entered another Materials area 1992 | -8/Materials | Evolved 2 slots: Utility x1, Weapon x1 2147 | -8/Materials | Identified exit to Garrison 2259 | -8/Materials | Entered Garrison 2288 | -8/Garrison | Build established: Hacker-Tank 2361 | -8/Garrison | Triggered checkpoint 2370 | -8/Garrison | Triggered checkpoint 2493 | -8/Garrison | Triggered checkpoint 2497 | -8/Garrison | Triggered checkpoint 2569 | -8/Garrison | Installed Relay Interface Framework 2614 | -8/Garrison | Build established: Hacker-Mutant 2693 | -8/Garrison | Garrison Relay disabled 2752 | -8/Garrison | Garrison Relay disabled 2835 | -8/Garrison | Triggered checkpoint 2987 | -8/Garrison | Identified exit to Materials 2987 | -8/Garrison | Discovered exit to Materials (range 11) 3013 | -8/Garrison | Entered Materials 3013 | -8/Materials | Accompanied by 1 ally 3300 | -8/Materials | Repaired Hrd. Medium Armor Plating 3581 | -8/Materials | Garrison activated, responded to threat 3749 | -8/Materials | Identified exit to Garrison 3751 | -8/Materials | Entered Garrison 3883 | -8/Garrison | Triggered checkpoint 3931 | -8/Garrison | Garrison Relay disabled 3956 | -8/Garrison | Learned Factory security intel 4073 | -8/Garrison | Triggered checkpoint 4201 | -8/Garrison | Triggered checkpoint 4210 | -8/Garrison | Build established: Scavenger-Mutant 4320 | -8/Garrison | Identified exit to Factory 4320 | -8/Garrison | Discovered exit to Factory (range 10) 4382 | -8/Garrison | Expanded RIF knowledge: Zone Cloak 4418 | -8/Garrison | Entered Factory 4418 | -7/Factory | Evolved 2 slots: Propulsion x1, Utility x1 4605 | -7/Factory | Identified exit to Factory 4605 | -7/Factory | Discovered exit to Factory (range 14) 5067 | -7/Factory | Build established: Hacker-Skirmisher 5116 | -7/Factory | Fabricated Remote Datajack (x1) 5887 | -7/Factory | Identified exit to Lower Caves 5887 | -7/Factory | Discovered exit to Lower Caves (range 10) 6164 | -7/Factory | Identified exit to Storage 6336 | -7/Factory | Build established: Hacker-Gunner 6632 | -7/Factory | Entered Storage 7378 | -7/Storage | Assisted by bots powering up and referring to "LRC-V3" 7506 | -7/Storage | Identified exit to Garrison 7521 | -7/Storage | Lost 4 allies 7607 | -7/Storage | Entered Garrison 7607 | -7/Garrison | Accompanied by 4 allies 7665 | -7/Garrison | Triggered checkpoint 7964 | -7/Garrison | Destroyed 8 combat bots 8099 | -7/Garrison | Triggered checkpoint 8119 | -7/Garrison | Identified exit to Recycling 8119 | -7/Garrison | Discovered exit to Recycling (range 10) 8171 | -7/Garrison | Triggered checkpoint 8363 | -7/Garrison | Lost 3 parts (3n) 8489 | -7/Garrison | Build established: Hacker-Mutant 8575 | -7/Garrison | Discovered exit to Recycling (range 10) 8676 | -7/Garrison | Rescued a captive Derelict 8678 | -7/Garrison | Rescued a captive Derelict 8771 | -7/Garrison | Triggered checkpoint 8935 | -7/Garrison | Triggered checkpoint 9007 | -7/Garrison | Triggered checkpoint 9079 | -7/Garrison | Expanded RIF knowledge: Program Shield 9300 | -7/Garrison | Build established: Hacker-Tank 9332 | -7/Garrison | Entered Recycling 9332 | -7/Recycling | Found Scrap Engine 9582 | -7/Recycling | System Shield fried by hacking feedback 9705 | -7/Recycling | Identified exit to Factory 9705 | -7/Recycling | Discovered exit to Factory (range 8) 9727 | -7/Recycling | Entered Factory 9727 | -5/Factory | Accompanied by 3 allies 9727 | -5/Factory | Evolved 4 slots: Power x1, Propulsion x1, Utility x2 9878 | -5/Factory | Build established: Scavenger-Tank 10467 | -5/Factory | Fabricated Dynamic Insulation System? 10589 | -5/Factory | Spotted B-75 Beast 10645 | -5/Factory | Hijacked Beast 6a control node with streamctrl_high 10677 | -5/Factory | Destroyed Beast 6a 11548 | -5/Factory | Identified exit to Upper Caves 11612 | -5/Factory | Build established: Scavenger-Mutant 11621 | -5/Factory | Identified exit to Factory 11621 | -5/Factory | Discovered exit to Factory (range 5) 11631 | -5/Factory | Entered another Factory area 11631 | -4/Factory | Evolved 2 slots: Propulsion x1, Utility x1 11805 | -4/Factory | Identified exit to Upper Caves 11805 | -4/Factory | Identified exit to Extension 12166 | -4/Factory | Entered Extension 12213 | -4/Extension | Rescued a captive Derelict 12318 | -4/Extension | Rescued a captive Derelict 12359 | -4/Extension | Build established: Hacker-Mutant 12433 | -4/Extension | Rescued A7 12550 | -4/Extension | Spotted B-86 Titan 12563 | -4/Extension | Spotted B-86 Titan 12589 | -4/Extension | Destroyed B-86 Titan 12604 | -4/Extension | Extracted ID and sensor layout for unrecognized location from A7's data core 12641 | -4/Extension | Disrupted transfer network 12664 | -4/Extension | Destroyed B-86 Titan 12831 | -4/Extension | Rescued a captive Derelict 12831 | -4/Extension | Rescued a captive Derelict 12937 | -4/Extension | Build established: Hacker-Tank 12987 | -4/Extension | Energy Cycler disabled 13300 | -4/Extension | Repaired Lyr. Heavy Armor Plating 13353 | -4/Extension | Identified exit to Research 13353 | -4/Extension | Discovered exit to Research (range 10) 13355 | -4/Extension | Identified exit to Cetus 13355 | -4/Extension | Discovered exit to Cetus (range 6) 13366 | -4/Extension | Disrupted transfer network 13409 | -4/Extension | Entered Cetus 13429 | -4/Cetus | Spotted Cetus Guard 13429 | -4/Cetus | Spotted Cetus Guard 13440 | -4/Cetus | Destroyed Cetus Guard 13442 | -4/Cetus | Destroyed Cetus Guard 13444 | -4/Cetus | Destroyed Cetus Guard 13446 | -4/Cetus | Spotted Cetus Guard 13451 | -4/Cetus | Destroyed Cetus Guard 13738 | -4/Cetus | Discovered exit to Research (range 16) 13863 | -4/Cetus | Identified exit to Archives 13863 | -4/Cetus | Discovered exit to Archives (range 15) 13922 | -4/Cetus | Entered Archives 14066 | -4/Archives | Identified exit to Hub_04(d) 14066 | -4/Archives | Discovered exit to Hub_04(d) (range 14) 14086 | -4/Archives | Discovered exit to Hub_04(d) (range 16) 14111 | -4/Archives | Discovered exit to Research (range 14) 14168 | -4/Archives | Unable to access archive contents 14184 | -4/Archives | Unable to access archive contents 14202 | -4/Archives | Unable to access archive contents 14266 | -4/Archives | Entered Hub_04(d) 14348 | -4/Hub_04(d) | Discovered exit to Research (range 12) 14586 | -4/Hub_04(d) | Network Hub disabled 14628 | -4/Hub_04(d) | Entered Research 14628 | -3/Research | Evolved 2 slots: Utility x1, Weapon x1 14682 | -3/Research | Identified exit to Research 14682 | -3/Research | Discovered exit to Research (range 8) 14748 | -3/Research | Identified exit to Armory 14748 | -3/Research | Discovered exit to Armory (range 6) 14780 | -3/Research | Entered Armory 15502 | -3/Armory | Destroyed 10 combat bots 15506 | -3/Armory | Lost 8 parts (1p1n6u) 15666 | -3/Armory | Entered Research 15666 | -2/Research | Evolved 2 slots: Propulsion x1, Utility x1 15739 | -2/Research | Spotted B-90 Cyclops 15775 | -2/Research | Destroyed B-90 Cyclops 15915 | -2/Research | Identified exit to Access 15915 | -2/Research | Discovered exit to Access (range 7) 16113 | -2/Research | Build established: Scavenger-Tank 16707 | -2/Research | Entered Access 16707 | -1/Access | Evolved 2 slots: Utility x2 17101 | -1/Access | System corruption reached 10% 17130 | -1/Access | Destroyed 8 combat bots 17438 | -1/Access | Build established: Scavenger-Gunner 17457 | -1/Access | First assault squad dispatched 17602 | -1/Access | Destroyed 9 combat bots 17759 | -1/Access | Destroyed 7 combat bots 17802 | -1/Access | Core integrity fell below 50% 17808 | -1/Access | Released all parts (8) 17819 | -1/Access | Core integrity fell below 20% 17833 | -1/Access | Destroyed by P-80 Master with Gamma Rifle Last Messages --------------- K-01 Serf collects debris. R-10 Processor collects Corrupted Wheel. G-73 Enforcer heat damages Adv. Heat Sink, Hvy. Laser, Broken Myomer Leg. G-73 Enforcer overheating. Acquired 32 matter. G-73 Enforcer overheating. G-73 Enforcer destroyed. K-01 Serf collects debris. R-10 Processor collects Myomer Leg. Extracted 1 energy. P-80 Master resets G-73 Enforcer, system corruption cleaned. System corrupted: Energy discharge (-32). K-01 Serf collects debris. G-73 Enforcer destroyed. M-28 Smith repairs G-73 Enforcer. R-10 Processor collects Adv. Heat Sink. [Achievement: 20k Club] [Achievement: 30k Club] Map ----- +----------------------------------------------------+ | ?????????????????????????# #??????????????????? | | ???????????????????????### #??????????????????? | | ??????????????????????? # #??????????????????? | | ???????????????????????? # #??????????????????? | | ???????????????????????? # #??????????????????? | | ???????????????????????? # %#??????????????????? | | ???????????????????????? # % #??????????????????? | | ??????????###########+#### ####???????????????? | | ?????????? ????????????????? | | ??????????? ?????????????????? | | ?????????????? ?????????????????? | | ????????????????# ! ??????????????????? | | ????????????????# #???????????????????? | | ????????????????# ##??????????????????? | | ?""?????????????# ;#??????????????????? | | ?""?????????????# #???????????????????? | | ?""???########### % #???????????????????? | | ?"Y???# # "Y" % #???????????????????? | | ?""???# # "" ""% #???????????????????? | | ?""???# # ###;#k/####?????????????????? | | ?""???# # # [ uR%%* #?????????????????? | | ??????# #%/%=#!!% ! == #?????????????????? | | ??????# # %!# =!%mg===#?????????????????? | | ??????# =% %#!*p[gp=*[#?????????????????? | | ??????# # =!!/!! #?????????????????? | | ??????######" # # =@!! #?????????????????? | | ???????# !% # * #?????????????????? | | ???????# !%% # #?????????????????? | | ???????# =%[ ######;####?????????????????? | | ???????# = ???# #???????????????????? | | ???????# # # ########???????????????????? | | ???????# # #?????????????????????? | | ??????#" #?????????????????????? | | ??????## # """Y""" #?????????????????????? | | ???????# + """"""" #?????????????????????? | | ???????# %# #?????????????????????? | | ???????# # #?????????????????????? | | ???????# ### # " # ####?????????????????????? | | ?????### ## ## # # #???????????????????????? | | ?????# # # # #???????????????????????? | | ###### ##### ??????? | | ??????? | | ! ??????? | | ??????? | | "" ??????? | | ###### "F ???????? | | ?????# "" ???????? | | ?????########### ## """ ???????? | | ??????????????? ## """ "" ?""?????? | | ?????????????? ## "" ?""?????? | +----------------------------------------------------+ Best States ------------- Heat Dissipation 141 Energy Generation 45 Energy Capacity 950 Matter Stores 300 Matter Capacity 300 Sight Range 22 Robot Scan Range 15 Terrain Scan Density 10 Jamming Range 12 Armor Coverage 1500 Resistance: KI 35 Resistance: TH 35 Resistance: EX 35 Resistance: EM 35 Resistance: I 35 Resistance: S 35 Resistance: P 35 Core Shielding 30 Propulsion Shielding 33 Utility Shielding 33 Phase Shifting 10 Evasion (%) 50 Targeting Accuracy 8 Target Analysis 12 Core Analysis 6 Armor Integrity Analysis 30 Recoil Reduction 7 Offensive Hacking 40 Defensive Hacking 10 Relay Coupler Types 1 Relay Coupler Value 39 Item Schematics ----------------- Datajack | -8/Materials | Hacked Remote Datajack | -7/Factory | Hacked Dynamic Insulation System | -7/Storage | Hacked Robot Schematics ------------------ Y-72 Warden | -3/Armory | Hacked Fabricated ------------ Remote Datajack | x1 | -7/Factory Dynamic Insulation System | x2 | -5/Factory Alien Tech Used ----------------- None Achievements -------------- 20k Club 30k Club Can't Touch This Infiltrator Knowing Is Half The Battle Rockin' Loadout Challenges ------------ None Game ------ Seed MissileElectronReplicator Manual? 0 Play Time 02:22:39 Cumulative 37.0 hours Start 2024.04.20 @ 09:28:46 End 2024.04.20 @ 11:55:00 Sessions 1 Manual Loads 0 Difficulty Explorer Special Mode None Game No. 35 Rogue 34 Adventurer 0 Explorer 1 Win Type - Total 2 Types 2/0/0/0/0/0/0/0/0 Lore% 32 Gallery% 36 Achievement% 34 Wizard Run 0 Options --------- Layout 1 ASCII 0 Keyboard 0 Movement Arrows Keybinds 0 Fullscreen 1 Font 24/Smallcaps Map View 50x35 Zoom Use 0% Tactical HUD 0 Map Filters NONE Filters NONE Steam 1 RUN: 61837304-8e39-49bc-93f9-1dc8f958376f